bitfinex-derivatives/quotes_BTCF0:USTF0_20250411
["timestamp","ask_amount","ask_price","bid_price","bid_amount"]
[1744352500807,0.1234268,81101.0,81100.0,0.2233884]
[1744352501109,0.1233868,81101.0,81100.0,0.2233884]
[1744352501309,0.1234268,81101.0,81100.0,0.2233884]
[1744352501512,0.1234268,81101.0,81100.0,0.2544884]
[1744352502215,4e-05,81101.0,81100.0,0.2544884]
[1744352502616,0.0616923,81103.0,81102.0,0.1850722]
[1744352502817,0.0616923,81103.0,81102.0,0.2479722]
[1744352504116,0.1233812,81105.0,81104.0,0.1233808]
[1744352504521,0.1233812,81105.0,81104.0,0.1862808]
[1744352505231,0.1233812,81105.0,81104.0,0.00114577]
[1744352506037,0.1233812,81105.0,81104.0,0.12452657]
[1744352508535,0.3608,81106.0,81105.0,0.1233808]
[1744352508831,0.00018496,81109.0,81105.0,0.0647]
[1744352509027,0.3608,81119.0,81112.0,0.061685]
[1744352509226,0.1233498,81126.0,81125.0,0.1233473]
[1744352509420,0.1233464,81128.0,81127.0,0.1850121]
[1744352509831,0.1233864,81128.0,81127.0,0.0331]
[1744352510233,0.1233864,81128.0,81127.0,0.1564473]
[1744352511435,0.1233864,81128.0,81127.0,0.1474473]
[1744352512433,0.1850599,81128.0,81125.0,0.061675]
[1744352512633,0.1850599,81128.0,81127.0,0.1233473]
[1744352512927,0.1233858,81128.0,81127.0,0.1233473]
[1744352513123,0.1233458,81128.0,81127.0,0.1233473]
[1744352513329,0.1233858,81128.0,81127.0,0.1233473]
[1744352521337,4e-05,81128.0,81127.0,0.1233473]
[1744352521644,0.1233359,81135.0,81134.0,0.1233351]
[1744352524844,0.1855359,81135.0,81134.0,0.1233351]
[1744352525142,0.1546359,81135.0,81134.0,0.1233351]
[1744352525543,0.1233359,81135.0,81134.0,0.1233351]
[1744352525934,0.00018496,81136.0,81135.0,0.1233351]
[1744352526137,0.00018496,81136.0,81135.0,0.1542351]
[1744352526348,0.00022496,81136.0,81135.0,0.1542351]
[1744352527539,0.12355856,81136.0,81135.0,0.1542351]
[1744352528144,0.1233412,81131.0,81130.0,0.4224713]
[1744352528541,0.1850201,81129.0,81128.0,0.1233452]
[1744352529044,0.2474201,81129.0,81128.0,0.1233452]
[1744352529439,0.1240728,81129.0,81128.0,0.1233452]
[1744352530142,0.1233579,81120.0,81117.0,0.1233618]
[1744352530335,0.1233579,81120.0,81115.0,0.0616827]
[1744352530541,0.1233579,81120.0,81119.0,0.12354446]
[1744352532447,0.1233579,81120.0,81119.0,0.00018496]
[1744352532943,0.4841579,81120.0,81119.0,0.00018496]
[1744352533151,0.7341579,81120.0,81119.0,0.00018496]
[1744352533453,0.1233868,81101.0,81100.0,0.1]
[1744352534147,0.1847868,81101.0,81100.0,0.1]
[1744352535540,0.1848268,81101.0,81100.0,0.1]
[1744352536441,0.2158268,81101.0,81100.0,0.1]
[1744352537753,0.27581075,81101.0,81100.0,0.1]
[1744352537950,0.63661075,81101.0,81100.0,0.1]
[1744352538652,0.88661075,81101.0,81100.0,0.1]
[1744352539853,1.24988705,81101.0,81100.0,0.1]
[1744352540053,0.99988705,81101.0,81100.0,0.1]
[1744352540754,1.08424705,81101.0,81100.0,0.1]
[1744352541055,1.33424705,81101.0,81100.0,0.1]
[1744352541649,1.08424705,81101.0,81100.0,0.1]
[1744352542352,1.33424705,81101.0,81100.0,0.1]
[1744352542556,0.123399,81093.0,81092.0,0.00018496]
[1744352542744,0.484199,81093.0,81092.0,0.00018496]
[1744352543352,0.9088753,81093.0,81092.0,0.00018496]
[1744352545356,0.9932753,81093.0,81092.0,0.00018496]
[1744352546455,1.3540753,81093.0,81092.0,0.00018496]
[1744352551667,1.3541153,81093.0,81092.0,0.00018496]
[1744352558469,0.1234112,81085.0,81084.0,0.062]
[1744352558768,0.4842112,81085.0,81084.0,0.062]
[1744352558971,0.49646638,81085.0,81084.0,0.062]
[1744352559172,0.1234072,81091.0,81090.0,0.1851016]
[1744352559467,0.1234112,81086.0,81085.0,0.0617054]
[1744352559665,0.1234112,81086.0,81085.0,0.1269054]
[1744352559870,0.1234512,81086.0,81085.0,0.1269054]
[1744352561265,0.4842512,81086.0,81085.0,0.0652]
[1744352561771,0.1234142,81083.0,81082.0,6e-08]
[1744352562072,0.8474905,81083.0,81082.0,6e-08]
[1744352562765,0.1234371,81068.0,81067.0,0.00049342]
[1744352562967,0.9293971,81068.0,81067.0,0.00049342]
[1744352564862,0.9293971,81068.0,81067.0,0.0165927]
[1744352565671,0.8450371,81068.0,81067.0,0.0165927]
[1744352565969,0.9293971,81068.0,81067.0,0.0165927]
[1744352568965,1.21080575,81068.0,81067.0,0.0165927]
[1744352570867,0.85000575,81068.0,81067.0,0.0165927]
[1744352572959,0.6286007,81068.0,81067.0,0.0165927]
[1744352583076,0.6936007,81068.0,81067.0,0.0165927]
[1744352585781,0.1234462,81062.0,81061.0,0.1559477]
[1744352589880,0.13558447,81062.0,81061.0,0.1559477]
[1744352592391,0.16558447,81062.0,81061.0,0.1559477]
[1744352595491,0.22560105,81062.0,81061.0,0.1559477]
[1744352595989,0.06001658,81062.0,81061.0,0.7667477]
[1744352596290,0.06005658,81062.0,81061.0,0.7667477]
[1744352596791,0.18350278,81062.0,81061.0,0.1559477]
[1744352598195,0.18350278,81062.0,81061.0,0.04884665]
[1744352598388,0.18350278,81062.0,81061.0,0.01634665]
[1744352598980,0.21380278,81062.0,81061.0,0.01634665]
[1744352599387,0.24550278,81062.0,81061.0,0.01634665]
[1744352599789,0.60630278,81062.0,81061.0,0.01634665]
[1744352599984,0.63640278,81062.0,81061.0,0.01634665]
[1744352602895,0.99967908,81062.0,81061.0,5e-08]
[1744352603097,0.1234492,81060.0,81059.0,8.379e-05]
[1744352603401,0.2077692,81060.0,81059.0,9e-08]
[1744352603591,0.4577692,81060.0,81059.0,9e-08]
[1744352604289,0.2077692,81060.0,81059.0,9e-08]
[1744352606693,0.1234736,81044.0,81043.0,0.00049356]
[1744352606895,0.9294336,81044.0,81043.0,0.00049356]
[1744352607304,0.9294336,81044.0,81043.0,6e-08]
[1744352607493,0.9927336,81044.0,81043.0,6e-08]
[1744352608502,1.3560099,81044.0,81043.0,6e-08]
[1744352609692,1.3560499,81044.0,81043.0,6e-08]
[1744352610199,1.3560099,81044.0,81043.0,6e-08]
[1744352610398,1.41606648,81044.0,81043.0,6e-08]
[1744352611692,1.38316648,81044.0,81043.0,6e-08]
[1744352612208,1.38312648,81044.0,81043.0,6e-08]
[1744352612395,1.38316648,81044.0,81043.0,6e-08]
[1744352615209,1.3231499,81044.0,81043.0,6e-08]
[1744352616108,0.9598736,81044.0,81043.0,6e-08]
[1744352617207,0.9294736,81044.0,81043.0,6e-08]
[1744352617608,0.9294336,81044.0,81043.0,6e-08]
[1744352617803,0.9294736,81044.0,81043.0,6e-08]
[1744352618307,0.9601736,81044.0,81043.0,6e-08]
[1744352619602,0.9294736,81044.0,81043.0,6e-08]
[1744352620107,0.8451136,81044.0,81043.0,6e-08]
[1744352620510,0.8450736,81044.0,81043.0,6e-08]
[1744352620811,0.8451136,81044.0,81043.0,6e-08]
[1744352621611,0.8779136,81044.0,81043.0,6e-08]
[1744352621815,0.5171136,81044.0,81043.0,6e-08]
[1744352622514,0.4843136,81044.0,81043.0,6e-08]
[1744352623111,0.4843136,81044.0,81043.0,0.01606721]
[1744352623905,0.5472136,81044.0,81043.0,0.01606721]
[1744352625211,0.5171136,81044.0,81043.0,0.01606721]
[1744352626413,0.9081136,81044.0,81043.0,0.01606721]
[1744352626607,0.9081136,81044.0,81043.0,6e-08]
[1744352630011,1.2713899,81044.0,81043.0,6e-08]
[1744352633515,0.1235026,81025.0,81024.0,0.0621]
[1744352633707,0.4843026,81025.0,81024.0,0.0621]
[1744352636917,0.49690496,81025.0,81024.0,0.0621]
[1744352637817,0.55694699,81025.0,81024.0,0.0621]
[1744352639123,0.19614699,81025.0,81024.0,0.0621]
[1744352641521,0.13610496,81025.0,81024.0,0.0621]
[1744352641719,0.13610496,81025.0,81024.0,0.1856041]
[1744352641921,0.16710496,81025.0,81024.0,0.1856041]
[1744352643821,0.16710496,81025.0,81024.0,0.0621]
[1744352644122,0.19910496,81025.0,81024.0,0.0621]
[1744352645121,0.16710496,81025.0,81024.0,0.2185041]
[1744352648124,0.49690496,81025.0,81024.0,0.2185041]
[1744352648527,0.74182674,81025.0,81024.0,0.2185041]
[1744352649622,0.24492178,81025.0,81024.0,0.5793041]
[1744352649817,0.36842438,81025.0,81024.0,0.5793041]
[1744352650214,0.36842438,81025.0,81024.0,0.2185041]
[1744352650521,0.36846438,81025.0,81024.0,0.2185041]
[1744352651619,0.36842438,81025.0,81024.0,0.2185041]
[1744352652426,0.36846438,81025.0,81024.0,0.2185041]
[1744352652926,0.27141564,81025.0,81024.0,0.2185041]
[1744352657431,0.1235426,81025.0,81024.0,0.2185041]
[1744352658328,0.1539426,81025.0,81024.0,0.2185041]
[1744352658716,0.1866426,81025.0,81024.0,0.2185041]
[1744352659431,0.5474426,81025.0,81024.0,0.2185041]
[1744352659634,0.5474426,81025.0,81024.0,0.09602265]
[1744352659832,0.5474426,81025.0,81024.0,0.21952675]
[1744352660336,0.5474426,81025.0,81024.0,0.21973128]
[1744352660937,0.5474426,81025.0,81024.0,0.21993581]
[1744352661232,0.5474426,81025.0,81024.0,0.09643171]
[1744352661424,0.5474426,81025.0,81024.0,0.03303624]
[1744352662038,0.73231962,81025.0,81024.0,0.03309198]
[1744352662336,0.73231962,81025.0,81024.0,0.00169198]
[1744352664033,0.73231962,81025.0,81024.0,0.12519608]
[1744352664233,0.73231962,81025.0,81024.0,0.00169198]
[1744352664941,0.73231962,81025.0,81024.0,0.12519608]
[1744352666040,0.60748805,81025.0,81024.0,0.00169198]
[1744352667945,0.60748805,81025.0,81024.0,0.12519608]
[1744352669248,0.60748805,81025.0,81024.0,0.00169198]
[1744352669937,0.12160843,81024.0,81023.0,0.1235053]
[1744352670338,0.18700843,81024.0,81023.0,0.1235053]
[1744352672141,0.1235071,81022.0,81021.0,0.0331]
[1744352672341,0.1235071,81022.0,81021.0,0.1566087]
[1744352672547,0.1235071,81022.0,81021.0,0.0331]
[1744352672746,0.12249175,81020.0,81019.0,0.12351171]
[1744352672950,0.12249175,81020.0,81019.0,0.15471171]
[1744352673349,0.18739175,81020.0,81019.0,1e-08]
[1744352675063,0.18739175,81020.0,81019.0,0.12351171]
[1744352675250,0.18739175,81020.0,81019.0,1e-08]
[1744352675655,0.18739175,81020.0,81019.0,0.03310001]
[1744352676359,0.18743175,81020.0,81019.0,0.03310001]
[1744352677362,0.46939862,81020.0,81019.0,0.03310001]
[1744352678661,0.46939862,81020.0,81019.0,0.06400001]
[1744352678854,0.46939862,81020.0,81019.0,0.18751171]
[1744352679053,0.46939862,81020.0,81019.0,0.06400001]
[1744352680665,0.2474772,81020.0,81019.0,0.06400001]
[1744352682260,0.2150772,81020.0,81019.0,0.18751171]
[1744352682654,0.2150372,81020.0,81019.0,0.18751171]
[1744352682853,0.2150772,81020.0,81019.0,0.18751171]
[1744352683054,0.1825772,81020.0,81019.0,0.18751171]
[1744352683653,0.1825372,81020.0,81019.0,0.18751171]
[1744352683950,0.1825772,81020.0,81019.0,0.18751171]
[1744352693669,0.12253175,81020.0,81019.0,0.18751171]
[1744352698469,0.12253175,81020.0,81019.0,0.15661171]
[1744352698674,0.18783175,81020.0,81019.0,0.15661171]
[1744352701673,0.24787576,81020.0,81019.0,0.15661171]
[1744352705280,0.24787576,81020.0,81019.0,1e-08]
[1744352706578,0.18783175,81020.0,81019.0,1e-08]
[1744352709379,0.54863175,81020.0,81019.0,1e-08]
[1744352709879,0.54863175,81020.0,81019.0,0.12351171]
[1744352710273,0.51553175,81020.0,81019.0,0.12351171]
[1744352710471,0.73745317,81020.0,81019.0,0.12351171]
[1744352710671,0.61492142,81020.0,81019.0,0.18531171]
[1744352710866,0.58276142,81020.0,81019.0,0.18531171]
[1744352711781,0.58272142,81020.0,81019.0,0.18531171]
[1744352711982,0.58276142,81020.0,81019.0,0.18531171]
[1744352712485,0.70627162,81020.0,81019.0,0.18531171]
[1744352712876,0.34547162,81020.0,81019.0,0.18531171]
[1744352713385,0.22196142,81020.0,81019.0,0.18531171]
[1744352713570,0.34547162,81020.0,81019.0,0.18531171]
[1744352713773,0.22196142,81020.0,81019.0,0.18531171]
[1744352714173,0.22192142,81020.0,81019.0,0.18531171]
[1744352714386,0.22196142,81020.0,81019.0,0.18531171]
[1744352714779,0.24526141,81020.0,81019.0,0.18531171]
[1744352718983,0.22192142,81027.0,81026.0,0.1235011]
[1744352719286,0.18505713,81031.0,81030.0,0.123495]
[1744352719887,0.18505713,81031.0,81030.0,0.156095]
[1744352720083,0.18505713,81031.0,81030.0,0.188395]
[1744352720273,0.18505713,81031.0,81030.0,0.20465004]
[1744352721487,0.18505713,81031.0,81030.0,0.20465959]
[1744352723194,0.14302352,81032.0,81031.0,0.1234934]
[1744352723386,0.26651542,81032.0,81031.0,0.13975799]
[1744352723585,0.33021542,81032.0,81031.0,0.01626459]
[1744352723885,0.69101542,81032.0,81031.0,0.13975799]
[1744352724081,0.0617484,81029.0,81027.0,0.1234986]
[1744352724290,0.2176507,81028.0,81027.0,0.1234986]
[1744352724482,0.2481507,81028.0,81027.0,0.1234986]
[1744352725687,0.1235026,81026.0,81025.0,0.1235022]
[1744352726084,0.1845026,81026.0,81025.0,0.1235022]
[1744352728392,0.061,81026.0,81025.0,0.1235022]
[1744352728990,0.1845011,81026.0,81025.0,0.1558022]
[1744352729391,0.061,81026.0,81025.0,0.1558022]
[1744352729782,0.06104,81026.0,81025.0,0.1875022]
[1744352730189,0.061,81026.0,81025.0,0.1875022]
[1744352730388,0.06104,81026.0,81025.0,0.1875022]
[1744352730892,0.1845411,81026.0,81025.0,0.1875022]
[1744352731294,0.06104,81026.0,81025.0,0.1875022]
[1744352731696,0.03084,81026.0,81025.0,0.1875022]
[1744352732087,0.03084,81026.0,81025.0,0.1558022]
[1744352732282,0.03084,81026.0,81025.0,0.1878022]
[1744352732492,0.03084,81026.0,81025.0,0.20393623]
[1744352733798,4e-05,81026.0,81025.0,0.20393623]
[1744352734186,0.14783433,81027.0,81026.0,0.1235011]
[1744352734693,0.14783433,81027.0,81026.0,0.1870011]
[1744352734891,0.14783433,81027.0,81026.0,0.20313513]
[1744352735690,0.1552919,81032.0,81029.0,0.1234965]
[1744352735691,0.14783433,81030.0,81029.0,0.1234965]
[1744352736088,0.14783433,81030.0,81029.0,0.13958033]
[1744352736788,0.14787433,81030.0,81029.0,0.13958033]
[1744352740001,4e-05,81030.0,81029.0,0.13958033]
[1744352740599,0.03164,81030.0,81029.0,0.13958033]
[1744352744101,0.03144,81030.0,81029.0,0.13958033]
[1744352745097,0.0314,81030.0,81029.0,0.13958033]
[1744352745404,0.03144,81030.0,81029.0,0.13958033]
[1744352747804,0.03144,81030.0,81029.0,0.1234965]
[1744352748907,0.03144,81030.0,81029.0,0.1396403]
[1744352752512,0.03144,81030.0,81029.0,0.1234965]
[1744352754003,0.03144,81030.0,81029.0,0.139598]
[1744352754816,0.03144,81030.0,81029.0,0.1234965]
[1744352755515,4e-05,81030.0,81029.0,0.1234965]
[1744352756014,0.031,81031.0,81029.0,0.13960346]
[1744352756315,0.1235102,81020.0,81018.0,0.34307423]
[1744352756513,0.1235102,81020.0,81018.0,0.21956143]
[1744352757108,0.1853102,81020.0,81018.0,0.21956143]
[1744352759718,0.1853102,81020.0,81019.0,0.12351171]
[1744352760623,0.031,81020.0,81019.0,0.12351171]
[1744352760816,0.1849162,81022.0,81021.0,0.1235087]
[1744352761624,0.1849562,81022.0,81021.0,0.1563087]
[1744352762031,0.1849562,81022.0,81021.0,0.1890087]
[1744352762531,0.2165562,81022.0,81021.0,0.1890087]
[1744352764334,0.1849562,81022.0,81021.0,0.1890087]
[1744352764527,0.1849162,81022.0,81021.0,0.1890087]
[1744352764727,0.1108199,81026.0,81025.0,0.1235026]
[1744352766626,0.234321,81026.0,81025.0,0.1235026]
[1744352767526,0.296021,81026.0,81025.0,0.1235026]
[1744352772039,0.656821,81026.0,81025.0,0.1235026]
[1744352772738,0.5460011,81026.0,81025.0,0.1235026]
[1744352773938,0.5460011,81026.0,81025.0,0.4843026]
[1744352773939,0.0304,81026.0,81025.0,0.4843026]
[1744352774335,0.03044,81026.0,81025.0,0.4843026]
[1744352774537,0.03044,81026.0,81025.0,0.5478026]
[1744352775740,0.061753,81023.0,81019.0,0.12350461]
[1744352775945,0.1233535,81022.0,81021.0,0.1235071]
[1744352776243,0.0616,81022.0,81021.0,0.1235071]
[1744352776430,0.0616,81022.0,81021.0,0.1870071]
[1744352776943,4e-05,81026.0,81025.0,0.1235026]
[1744352777139,0.11080317,81027.0,81026.0,0.1235011]
[1744352777736,0.11084317,81027.0,81026.0,0.1235011]
[1744352778941,0.11084317,81027.0,81026.0,0.1565011]
[1744352780946,0.03004,81027.0,81026.0,0.1565011]
[1744352783837,4e-05,81027.0,81026.0,0.1565011]
[1744352784033,0.14773756,81030.0,81029.0,0.1234965]
[1744352784743,0.14773756,81030.0,81029.0,0.1864965]
[1744352785145,0.00018509,81033.0,81032.0,0.1234919]
[1744352786244,0.03188509,81033.0,81032.0,0.1234919]
[1744352786439,0.00018509,81033.0,81032.0,0.1234919]
[1744352787242,0.18737549,81033.0,81032.0,0.1234919]
[1744352787642,0.03218509,81033.0,81032.0,0.1234919]
[1744352788044,0.00018509,81033.0,81032.0,0.1234919]
[1744352788244,0.00022509,81033.0,81032.0,0.1872919]
[1744352788647,0.14808927,81033.0,81032.0,0.1872919]
[1744352790847,0.14808927,81033.0,81032.0,0.20339839]
[1744352791449,0.14808927,81033.0,81032.0,0.56419839]
[1744352792147,0.14804927,81033.0,81032.0,0.56419839]
[1744352792351,0.14808927,81033.0,81032.0,0.56419839]
[1744352793147,0.11113158,81033.0,81032.0,0.56419839]
[1744352793347,0.11117158,81033.0,81032.0,0.56419839]
[1744352794353,0.11117158,81033.0,81032.0,0.64811839]
[1744352796458,0.00022509,81033.0,81032.0,0.56419839]
[1744352796645,0.00022509,81033.0,81032.0,0.64811839]
[1744352796846,0.00022509,81033.0,81032.0,0.56419839]
[1744352799354,0.00022509,81033.0,81032.0,0.58062377]
[1744352801161,0.00022509,81033.0,81032.0,0.51682377]
[1744352802955,0.00022509,81033.0,81032.0,0.51675144]
[1744352805155,0.11117158,81033.0,81032.0,0.51675144]
[1744352807059,0.11117158,81033.0,81032.0,0.51752591]
[1744352807360,0.11117158,81033.0,81032.0,0.5175269]
[1744352808258,0.11117158,81033.0,81032.0,0.51751391]
[1744352808459,0.11117158,81033.0,81032.0,0.51751519]
[1744352808860,0.00022509,81033.0,81032.0,0.51751519]
[1744352811465,0.00022509,81033.0,81032.0,0.51729763]
[1744352812167,0.00018509,81033.0,81032.0,0.51729763]
[1744352812364,0.00022509,81033.0,81032.0,0.51729763]
[1744352817476,0.00022509,81033.0,81032.0,0.51753147]
[1744352818674,0.00022509,81033.0,81032.0,0.51749041]
[1744352820582,0.00022509,81033.0,81032.0,0.51745499]
[1744352820779,0.12371549,81033.0,81032.0,0.15665499]
[1744352820973,0.18941549,81033.0,81032.0,0.1566571]
[1744352822284,0.18941549,81033.0,81032.0,0.15621032]
[1744352824290,0.06592509,81033.0,81032.0,0.15621032]
[1744352826072,0.06592509,81033.0,81032.0,0.1562577]
[1744352827788,0.06592509,81033.0,81032.0,0.15619158]
[1744352828487,0.18941549,81033.0,81032.0,0.15618602]
[1744352828687,0.21981549,81033.0,81032.0,0.15618602]
[1744352828983,0.21981549,81033.0,81032.0,0.03269412]
[1744352829488,0.21981549,81033.0,81032.0,0.15618602]
[1744352831487,0.21981549,81033.0,81032.0,0.15630777]
[1744352833982,0.06592509,81033.0,81032.0,0.15630777]
[1744352834184,0.18937549,81033.0,81032.0,0.15630777]
[1744352834381,0.18941549,81033.0,81032.0,0.15630777]
[1744352835589,0.24941283,81033.0,81032.0,0.15630777]
[1744352835783,0.24945283,81033.0,81032.0,0.15630777]
[1744352838888,0.24945283,81033.0,81032.0,0.15648063]
[1744352840696,0.18941549,81033.0,81032.0,0.15648063]
[1744352841892,0.18941549,81033.0,81032.0,0.1564385]
[1744352842087,0.03302509,81033.0,81032.0,0.50039839]
[1744352842295,0.03302509,81033.0,81032.0,0.51714942]
[1744352842296,0.00022509,81033.0,81032.0,0.51714942]
[1744352842495,0.00022509,81033.0,81032.0,0.50039839]
[1744352842690,0.00018509,81033.0,81032.0,0.51714941]
[1744352842901,0.00022509,81033.0,81032.0,0.51714941]
[1744352845195,0.00018509,81033.0,81032.0,0.51714941]
[1744352845396,0.00022509,81033.0,81032.0,0.51714941]
[1744352847088,0.00018509,81033.0,81032.0,0.51714941]
[1744352847292,0.00022509,81033.0,81032.0,0.51714941]
[1744352847693,0.12371549,81033.0,81032.0,0.03285751]
[1744352848104,0.15501549,81033.0,81032.0,0.15634941]
[1744352848301,0.21781549,81033.0,81032.0,0.03285751]
[1744352849095,0.21781549,81033.0,81032.0,0.15634941]
[1744352851908,0.21781549,81033.0,81032.0,0.15631813]
[1744352854202,0.21781549,81033.0,81032.0,0.13959839]
[1744352857009,0.18651549,81033.0,81032.0,0.13959839]
[1744352857213,0.06302509,81033.0,81032.0,0.13959839]
[1744352857707,0.06298509,81033.0,81032.0,0.13959839]
[1744352857912,0.37147651,81033.0,81032.0,0.13959839]
[1744352861710,0.37147651,81033.0,81032.0,0.01610649]
[1744352861916,0.18651549,81033.0,81032.0,0.13959839]
[1744352862115,0.18651549,81033.0,81032.0,0.01610649]
[1744352862305,0.18651549,81033.0,81032.0,0.13959839]
[1744352869021,0.18647549,81033.0,81032.0,0.13959839]
[1744352869414,0.18651549,81033.0,81032.0,0.17199839]
[1744352876525,0.18651549,81033.0,81032.0,0.13959839]
[1744352877030,0.24655386,81033.0,81032.0,0.13959839]
[1744352877930,0.24655386,81033.0,81032.0,0.01610649]
[1744352878429,0.25902448,81033.0,81032.0,0.01610649]
[1744352881731,0.45502456,81033.0,81032.0,0.01610649]
[1744352884224,0.81582456,81033.0,81032.0,0.01610649]
[1744352886337,0.81582456,81033.0,81032.0,0.13959839]
[1744352887136,0.80335394,81033.0,81032.0,0.13959839]
[1744352887528,0.80331394,81033.0,81032.0,0.13959839]
[1744352887830,0.80335394,81033.0,81032.0,0.17109839]
[1744352889243,0.80335394,81033.0,81032.0,0.1549919]
[1744352889536,0.60735386,81033.0,81032.0,0.1549919]
[1744352892038,0.1234919,81032.0,81031.0,0.031]
[1744352892239,0.1234919,81032.0,81025.0,0.0302]
[1744352892240,0.1234995,81027.0,81026.0,0.0314]
[1744352892539,0.1235056,81023.0,81022.0,0.0306]
[1744352893134,0.1235056,81023.0,81022.0,0.0606]
[1744352893437,0.1561056,81023.0,81022.0,0.1841071]
[1744352897442,0.1875056,81023.0,81022.0,0.1841071]
[1744352900946,0.24755019,81023.0,81022.0,0.1841071]
[1744352906447,0.21615019,81023.0,81022.0,0.1841071]
[1744352906747,0.06004459,81023.0,81022.0,0.1841071]
[1744352907247,0.06008459,81023.0,81022.0,0.1841071]
[1744352908139,0.06004459,81023.0,81022.0,0.1841071]
[1744352908540,0.06004459,81023.0,81022.0,0.20024535]
[1744352909038,0.06008459,81023.0,81022.0,0.20024535]
[1744352909239,0.18355019,81023.0,81022.0,0.20024535]
[1744352909439,0.18359019,81023.0,81022.0,0.20024535]
[1744352909640,0.18513174,81023.0,81022.0,0.20024535]
[1744352910647,0.18513174,81023.0,81022.0,0.1841071]
[1744352912049,0.18513174,81023.0,81022.0,0.20019313]
[1744352912851,0.30863734,81023.0,81022.0,0.20019313]
[1744352913051,0.33993734,81023.0,81022.0,0.20019313]
[1744352913850,0.1548456,81023.0,81022.0,0.20019313]
[1744352914148,0.1235456,81023.0,81022.0,0.20019313]
[1744352917959,0.1235456,81023.0,81022.0,0.04608603]
[1744352918149,0.1566456,81023.0,81022.0,0.04608603]
[1744352918454,0.1566456,81023.0,81021.0,0.0333]
[1744352918455,0.1235071,81022.0,81021.0,0.0333]
[1744352918756,0.1566071,81022.0,81021.0,0.0333]
[1744352919149,0.1566071,81022.0,81021.0,0.1568087]
[1744352920656,0.1566071,81022.0,81021.0,0.1235087]
[1744352925063,0.1566071,81022.0,81021.0,0.1553087]
[1744352925959,0.0331,81022.0,81021.0,0.1553087]
[1744352926162,0.1566071,81022.0,81021.0,0.1553087]
[1744352926463,4e-05,81023.0,81022.0,0.1235071]
[1744352926664,0.0645,81023.0,81022.0,0.1554071]
[1744352926858,0.1880456,81023.0,81022.0,0.1554071]
[1744352927862,0.37313734,81023.0,81022.0,0.1554071]
[1744352928856,0.37313734,81023.0,81022.0,0.1235071]
[1744352931863,0.24809195,81023.0,81022.0,0.1235071]
[1744352932059,0.21569195,81023.0,81022.0,0.1555071]
[1744352932560,0.21565195,81023.0,81022.0,0.1555071]
[1744352932759,0.21569195,81023.0,81022.0,0.1555071]
[1744352933163,0.06008635,81023.0,81022.0,0.1555071]
[1744352933560,0.06004635,81023.0,81022.0,0.1555071]
[1744352933859,0.06008635,81023.0,81022.0,0.1555071]
[1744352936067,4e-05,81023.0,81022.0,0.1555071]
[1744352937769,0.1553456,81023.0,81022.0,0.1235071]
[1744352937953,0.1235102,81020.0,81019.0,0.12351171]
[1744352938269,0.1235102,81020.0,81019.0,1e-08]
[1744352938456,0.1235102,81020.0,81019.0,0.12351171]
[1744352939062,0.1235102,81020.0,81019.0,1e-08]
[1744352939456,0.1235102,81020.0,81019.0,0.12351171]
[1744352941561,0.3735102,81020.0,81019.0,1e-08]
[1744352942667,0.1235102,81020.0,81019.0,1e-08]
[1744352943656,0.18356659,81020.0,81019.0,1e-08]
[1744352944058,0.24626659,81020.0,81019.0,1e-08]
[1744352944459,0.32970659,81020.0,81019.0,1e-08]
[1744352946872,0.1235178,81015.0,81014.0,0.123518]
[1744352947073,0.4843178,81015.0,81014.0,0.123518]
[1744352947474,0.5145178,81015.0,81014.0,0.123518]
[1744352947670,0.9063178,81015.0,81014.0,0.123518]
[1744352947863,0.1235209,81013.0,81012.0,0.2486826]
[1744352948068,0.1235209,81013.0,81012.0,0.1251611]
[1744352950159,0.8451209,81013.0,81012.0,0.1251611]
[1744352950370,0.1852872,81012.0,81011.0,0.1235239]
[1744352950671,0.2480872,81012.0,81011.0,0.1235239]
[1744352950874,0.1235254,81010.0,81009.0,0.2185895]
[1744352953775,0.4843254,81010.0,81009.0,0.2185895]
[1744352954376,0.5482254,81010.0,81009.0,0.2185895]
[1744352954569,0.5482254,81010.0,81009.0,0.095063]
[1744352954976,0.5482254,81010.0,81009.0,0.061763]
[1744352957769,0.3938,81010.0,81009.0,0.094863]
[1744352958480,0.36084,81010.0,81009.0,0.094863]
[1744352959071,0.18470381,81015.0,81014.0,0.1235193]
[1744352959973,0.30822161,81015.0,81014.0,0.1843193]
[1744352961184,0.18470381,81015.0,81014.0,0.1843193]
[1744352962181,0.30822161,81015.0,81014.0,0.1843193]
[1744352962972,0.18470381,81015.0,81014.0,0.1843193]
[1744352963173,0.30822161,81015.0,81014.0,0.1843193]
[1744352963369,0.34122161,81015.0,81014.0,0.20038319]
[1744352963573,0.1565178,81015.0,81014.0,0.1843193]
[1744352965983,0.033,81015.0,81014.0,0.1843193]
[1744352966179,0.1235178,81015.0,81014.0,0.2460783]
[1744352966582,0.1235178,81015.0,81014.0,0.26217244]
[1744352966794,0.12356981,81017.0,81016.0,0.1235163]
[1744352967279,0.12356981,81017.0,81016.0,0.13961044]
[1744352967479,0.12356981,81017.0,81016.0,0.20231044]
[1744352969279,0.15486981,81017.0,81016.0,0.20231044]
[1744352971886,0.15486981,81017.0,81016.0,0.1862163]
[1744352974884,0.21492094,81017.0,81016.0,0.1862163]
[1744352975682,0.57572094,81017.0,81016.0,0.1862163]
[1744352978696,0.51566981,81017.0,81016.0,0.1862163]
[1744352983435,0.39215401,81017.0,81016.0,0.1862163]
[1744352983887,0.51566881,81017.0,81016.0,0.1862163]
[1744352984091,0.42305401,81017.0,81016.0,0.1862163]
[1744352984594,0.54656881,81017.0,81016.0,0.1862163]
[1744352984896,0.39215401,81017.0,81016.0,0.1862163]
[1744352985201,0.3921,81017.0,81016.0,0.1862163]
[1744352985400,0.42304,81017.0,81016.0,0.1862163]
[1744352985796,0.39214,81017.0,81016.0,0.1862163]
[1744352986495,4e-05,81017.0,81016.0,0.1862163]
[1744352986895,0.03264,81017.0,81016.0,0.1862163]
[1744352987097,0.0326,81017.0,81016.0,0.1862163]
[1744352987297,0.03264,81017.0,81016.0,0.1862163]
[1744352990701,4e-05,81017.0,81016.0,0.1862163]
[1744352991103,0.1849572,81019.0,81018.0,0.1235132]
[1744352995609,0.033,81022.0,81020.0,0.1235102]
[1744352995610,0.1849572,81021.0,81020.0,0.1235102]
[1744352996696,0.3084659,81021.0,81020.0,0.1235102]
[1744352996901,0.3399659,81021.0,81020.0,0.1235102]
[1744352998205,0.1235148,81017.0,81016.0,0.0617574]
[1744352998406,0.4843148,81017.0,81016.0,0.0617574]
[1744352999207,0.5775148,81017.0,81016.0,0.0617574]
[1744353000016,0.0617596,81015.0,81012.0,0.0617605]
[1744353000214,0.0617641,81009.0,81001.0,0.21956143]
[1744353000507,0.0617641,81009.0,80989.0,0.0617785]
[1744353000508,0.0617687,81003.0,81000.0,0.31956143]
[1744353000715,0.1235392,81001.0,81000.0,0.44310063]
[1744353001101,0.1839392,81001.0,81000.0,0.44310063]